bitfinex-derivatives/quotes_SOLF0:USTF0_20250821
["timestamp","ask_amount","ask_price","bid_price","bid_amount"]
[1755786201879,4.75258662,185.99,185.86,4.75258662]
[1755786202186,4.75258662,185.96,185.85,2.87]
[1755786203079,4.75258662,185.96,185.85,8.2511]
[1755786203282,4.75258662,185.96,185.85,2.87]
[1755786204088,2.56,185.95,185.85,2.87]
[1755786204682,4.75258662,185.93,185.81,4.75258662]
[1755786204891,4.75258662,185.93,185.81,7.59258662]
[1755786205185,4.75258662,185.99,185.84,2.84]
[1755786205385,4.75258662,185.99,185.85,2.84]
[1755786205786,4.75258662,185.99,185.84,4.75258662]
[1755786205787,4.75258662,185.99,185.88,2.84]
[1755786206189,2.56,186.0,185.88,2.84]
[1755786206884,4.75258662,186.05,185.91,2.84]
[1755786207289,2.56,186.04,185.91,2.84]
[1755786207597,2.56,186.01,185.91,2.84]
[1755786208089,4.75258662,185.99,185.86,8.2208]
[1755786208687,2.56,185.95,185.82,2.84]
[1755786209085,2.56,185.95,185.82,8.2218]
[1755786209393,2.56,186.01,185.86,2.84]
[1755786209885,2.56,185.98,185.86,2.84]
[1755786210991,2.56,185.95,185.82,143.76]
[1755786211286,2.56,186.09,185.83,2.84]
[1755786211491,7.31258662,185.99,185.86,2.84]
[1755786212385,173.2,186.11,185.86,2.84]
[1755786212386,4.75258662,185.96,185.86,2.84]
[1755786212591,2.56,185.95,185.86,2.84]
[1755786213292,2.56,185.95,185.82,140.92]
[1755786214093,2.56,185.95,185.83,5.3817]
[1755786214288,2.56,185.95,185.81,2.84]
[1755786214492,4.75258662,185.9,185.75,123.57829095]
[1755786214803,4.75258662,185.87,185.76,2.84]
[1755786215789,2.56,185.83,185.71,2.84]
[1755786216093,2.56,185.83,185.72,5.3849]
[1755786216298,2.56,185.83,185.71,2.84]
[1755786216992,2.56,185.83,185.72,2.84]
[1755786217198,2.56,185.83,185.73,5.3844]
[1755786217498,2.56,185.83,185.72,2.84]
[1755786217886,7.31258662,185.87,185.74,2.84]
[1755786218090,2.56,185.87,185.74,2.84]
[1755786218392,4.75258662,185.85,185.74,2.84]
[1755786218594,2.56,185.84,185.74,2.84]
[1755786218789,124.0,186.0,185.74,2.84]
[1755786218790,2.56,185.89,185.74,2.84]
[1755786218993,4.75258662,185.88,185.74,2.84]
[1755786219495,2.56,185.87,185.74,2.84]
[1755786219697,4.75258662,185.85,185.74,2.84]
[1755786219896,4.75258662,185.85,185.74,8.2243]
[1755786220203,4.75258662,185.82,185.74,2.84]
[1755786220396,2.56,185.84,185.74,2.84]
[1755786220900,2.56,185.84,185.75,5.384]
[1755786221194,4.75258662,185.86,185.74,2.84]
[1755786221397,7.31258662,185.86,185.74,2.84]
[1755786222403,4.75258662,185.89,185.79,2.84]
[1755786222702,2.56,185.91,185.79,2.84]
[1755786222895,2.56,185.91,185.82,5.382]
[1755786223197,2.56,185.91,185.82,2.84]
[1755786224101,366.21258662,186.01,185.84,5.3813]
[1755786224102,2.56,185.95,185.84,5.3813]
[1755786224398,2.56,185.95,185.84,2.84]
[1755786224593,4.75258662,185.97,185.88,5.3803]
[1755786224801,4.75258662,185.99,185.88,2.84]
[1755786225893,4.75258662,185.96,185.83,2.84]
[1755786226099,2.56,185.95,185.83,2.84]
[1755786226695,2.56,185.95,185.86,5.3807]
[1755786226997,2.56,185.95,185.84,4.75258662]
[1755786227302,2.56,185.95,185.83,2.84]
[1755786227599,4.75258662,185.93,185.83,2.84]
[1755786228002,366.21258662,186.01,185.78,9.20087464]
[1755786228003,4.75258662,185.9,185.78,2.84]
[1755786228200,2.56,185.92,185.79,2.84]
[1755786228394,2.56,185.92,185.79,7.28828802]
[1755786228596,2.56,185.92,185.8,2.84]
[1755786229103,4.75258662,185.9,185.8,2.84]
[1755786230102,2.56,185.92,185.8,2.84]
[1755786231604,4.75258662,185.9,185.8,2.84]
[1755786231796,2.56,185.89,185.78,4.44828802]
[1755786231997,2.56,185.89,185.77,4.44828802]
[1755786232195,2.56,185.89,185.77,9.83178802]
[1755786232404,2.56,185.89,185.76,364.46]
[1755786232405,2.56,185.89,185.76,368.90828802]
[1755786232794,4.75258662,185.87,185.76,364.46]
[1755786233098,4.75258662,185.87,185.76,2.84]
[1755786233296,4.75258662,185.84,185.73,4.44828802]
[1755786233500,2.56,185.86,185.73,4.44828802]
[1755786233501,7.31258662,185.86,185.73,4.44828802]
[1755786233893,7.31258662,185.86,185.75,2.84]
[1755786234603,7.31258662,185.86,185.71,146.72734188]
[1755786234604,4.75258662,185.89,185.76,12.04087464]
[1755786234803,2.56,185.9,185.77,7.28828802]
[1755786235007,2.56,185.9,185.78,9.83138802]
[1755786235304,2.56,185.9,185.77,7.28828802]
[1755786236197,2.56,185.9,185.77,12.67168802]
[1755786236500,2.56,185.9,185.78,4.44828802]
[1755786236702,7.31258662,185.95,185.8,2.84]
[1755786236903,7.31258662,185.95,185.83,2.84]
[1755786236904,2.56,185.95,185.83,2.84]
[1755786237104,7.31258662,185.95,185.83,2.84]
[1755786237303,4.75258662,185.92,185.83,2.84]
[1755786237901,4.75258662,185.92,185.79,4.75258662]
[1755786238098,2.56,185.92,185.8,2.84]
[1755786238297,2.56,185.96,185.86,2.84]
[1755786239703,4.75258662,186.0,185.86,7.59258662]
[1755786239907,4.75258662,186.0,185.86,12.06967801]
[1755786240296,4.75258662,186.0,185.87,2.84]
[1755786240702,2.56,186.01,185.91,2.84]
[1755786241601,2.56,186.01,185.86,5.96945518]
[1755786241602,4.75258662,186.0,185.87,4.47709139]
[1755786241805,4.75258662,186.0,185.88,2.84]
[1755786242008,2.56,186.01,185.88,4.47709139]
[1755786242207,502.4,186.11,185.9,2.84]
[1755786242399,7.31258662,186.05,185.9,7.31709139]
[1755786242707,7.31258662,186.05,185.91,5.3794]
[1755786243106,7.31258662,186.05,185.92,4.75258662]
[1755786243408,2.56,186.05,185.93,2.84]
[1755786243602,4.75258662,186.09,185.93,7.31709139]
[1755786243796,2.56,186.08,185.94,2.84]
[1755786245009,2.56,186.05,185.94,2.84]
[1755786246417,4.75258662,186.03,185.94,2.84]
[1755786247818,2.56,186.02,185.89,2.84]
[1755786248022,4.75258662,186.0,185.89,2.84]
[1755786248318,7.31258662,186.02,185.89,2.84]
[1755786250523,4.75258662,185.99,185.89,2.84]
[1755786252014,2.56,186.01,185.89,2.84]
[1755786252217,2.56,186.01,185.89,8.2198]
[1755786252619,2.56,186.01,185.89,2.84]
[1755786252816,2.56,186.01,185.9,8.2195]
[1755786253018,2.56,186.01,185.9,2.84]
[1755786255323,4.75258662,185.96,185.86,361.6]
[1755786255529,4.75258662,185.96,185.87,2.84]
[1755786255724,2.56,185.98,185.87,2.84]
[1755786255925,4.75258662,185.96,185.87,2.84]
[1755786256434,2.56,185.98,185.87,2.84]
[1755786257627,2.56,185.98,185.87,8.2204]
[1755786257931,2.56,185.98,185.87,2.84]
[1755786258136,2.56,185.98,185.86,361.6]
[1755786258432,4.75258662,186.02,185.9,2.84]
[1755786258635,2.56,186.03,185.91,2.84]
[1755786259232,7.31258662,186.08,185.93,2.84]
[1755786259438,7.31258662,186.08,185.92,4.75258662]
[1755786259439,2.56,186.08,185.96,8.2178]
[1755786259624,366.35258662,186.11,185.98,4.75258662]
[1755786259827,366.35258662,186.11,185.99,2.84]
[1755786260028,4.75258662,186.11,185.99,2.84]
[1755786260228,2.56,186.1,185.99,2.84]
[1755786261027,4.75258662,186.08,185.95,2.84]
[1755786261232,2.56,186.07,185.95,2.84]
[1755786261636,2.56,186.07,185.96,5.3778]
[1755786261832,2.56,186.07,185.95,2.84]
[1755786262637,2.56,186.07,185.96,5.3777]
[1755786262838,2.56,186.07,185.95,2.84]
[1755786263336,2.56,186.07,185.97,5.3777]
[1755786263532,2.56,186.07,185.98,2.87]
[1755786263741,4.75258662,186.11,185.98,8.2472]
[1755786264341,2.57,186.12,185.99,4.75258662]
[1755786264539,2.57,186.12,186.0,2.87]
[1755786265139,4.75258662,186.08,185.96,2.87]
[1755786265337,2.57,186.07,185.96,2.87]
[1755786266137,4.75258662,186.05,185.96,2.87]
[1755786266342,2.57,186.07,185.96,2.87]
[1755786267840,2.57,186.07,185.96,8.2479]
[1755786268338,2.57,186.07,185.96,2.87]
[1755786269042,4.75258662,186.05,185.96,2.87]
[1755786269339,2.57,186.07,185.96,2.87]
[1755786270342,2.57,186.04,185.96,2.87]
[1755786270543,4.75258662,186.02,185.92,2.87]
[1755786270736,2.57,186.01,185.92,2.87]
[1755786270931,2.57,186.01,185.9,140.62]
[1755786271538,4.75258662,185.96,185.88,2.87]
[1755786272144,2.57,185.98,185.88,2.87]
[1755786272736,2.57,185.98,185.89,5.3799]
[1755786272943,2.57,185.98,185.88,2.87]
[1755786273639,4.75258662,185.96,185.88,2.87]
[1755786273944,2.57,185.98,185.88,2.87]
[1755786274941,2.57,186.03,185.9,2.87]
[1755786275335,2.57,186.03,185.93,5.3789]
[1755786275743,2.57,186.03,185.93,2.87]
[1755786276245,4.75258662,186.05,185.93,2.87]
[1755786276546,2.57,186.07,185.93,2.87]
[1755786276940,2.57,186.07,185.96,2.87]
[1755786277143,2.57,186.07,185.99,5.3772]
[1755786277342,2.57,186.07,185.96,2.87]
[1755786278443,4.75258662,186.05,185.96,2.87]
[1755786278646,4.75258662,186.05,185.96,8.2479]
[1755786279044,4.75258662,186.05,185.96,2.87]
[1755786279441,2.57,186.04,185.92,140.6]
[1755786279741,2.57,186.04,185.93,2.87]
[1755786282545,2.57,186.04,185.93,8.2488]
[1755786283045,2.57,186.04,185.93,2.87]
[1755786283246,4.75258662,186.02,185.93,2.87]
[1755786283447,2.57,186.01,185.92,140.6]
[1755786283648,2.57,185.98,185.88,7.34709139]
[1755786284343,2.57,185.98,185.87,4.47709139]
[1755786284547,4.75258662,185.96,185.87,4.47709139]
[1755786284946,4.75258662,185.96,185.86,506.63709139]
[1755786285341,2.57,185.95,185.86,502.16]
[1755786285747,2.57,185.95,185.86,140.56]
[1755786286648,2.57,185.95,185.84,2.87]
[1755786286947,4.75258662,185.93,185.84,2.87]
[1755786287146,4.75258662,185.9,185.8,7.34709139]
[1755786287448,4.75258662,185.9,185.8,8.2526]
[1755786287648,4.75258662,185.9,185.8,2.87]
[1755786287841,4.75258662,185.95,185.82,7.34793011]
[1755786288047,4.75258662,185.95,185.83,7.34793011]
[1755786288451,4.75258662,185.95,185.83,8.2517]
[1755786288647,4.75258662,185.95,185.83,2.87]
[1755786288848,2.57,185.94,185.83,2.87]
[1755786289049,2.57,185.94,185.84,5.3813]
[1755786289351,2.57,185.94,185.83,2.87]
[1755786290656,4.75258662,185.92,185.83,2.87]
[1755786292750,2.57,185.94,185.83,2.87]
[1755786293055,2.57,185.94,185.85,5.381]
[1755786293251,2.57,185.94,185.83,2.87]
[1755786293454,2.57,185.94,185.86,5.3809]
[1755786293754,2.57,185.94,185.83,2.87]
[1755786293954,4.75258662,185.92,185.83,2.87]
[1755786294659,4.75258662,185.92,185.83,8.2516]
[1755786294855,4.75258662,185.92,185.83,2.87]
[1755786295354,4.75258662,185.89,185.79,140.54]
[1755786295552,2.56,185.88,185.79,140.54]
[1755786295745,7.31258662,185.93,185.8,3.0]
[1755786296255,2.56,185.93,185.84,3.0]
[1755786297151,7.31258662,185.93,185.8,7.47793011]
[1755786297351,7.31258662,185.93,185.82,5.382]
[1755786298058,7.31258662,185.93,185.83,5.3817]
[1755786298258,7.31258662,185.93,185.8,4.47793011]
[1755786298458,7.31258662,185.93,185.84,5.3815]
[1755786298662,2.56,185.93,185.84,5.3815]
[1755786298855,2.56,185.93,185.83,3.0]
[1755786299157,2.56,185.93,185.85,5.381]
[1755786299555,2.56,185.93,185.83,3.0]
[1755786301053,16.15,186.11,185.83,4.75258662]
[1755786301254,2.56,186.03,185.89,3.0]
[1755786301758,2.56,186.0,185.89,3.0]
[1755786302761,4.75258662,185.99,185.89,3.0]
[1755786303562,7.31258662,186.0,185.89,3.0]
[1755786304166,2.56,186.0,185.89,3.0]
[1755786304563,361.34,186.04,185.89,3.0]
[1755786304857,2.56,186.05,185.94,5.3784]
[1755786305058,2.56,186.05,185.95,3.0]
[1755786305256,4.75258662,186.09,185.95,3.0]
[1755786305461,7.31258662,186.09,185.95,3.0]
[1755786306266,7.31258662,186.09,185.95,8.378]
[1755786306567,2.56,186.05,185.95,3.0]
[1755786306768,2.56,186.02,185.91,3.0]
[1755786308365,2.56,185.99,185.86,7.47793011]
[1755786308566,4.75258662,185.97,185.86,3.0]
[1755786309767,2.56,185.99,185.86,7.47793011]
[1755786310068,7.31258662,186.03,185.91,8.3794]
[1755786310268,7.31258662,186.03,185.91,3.0]
[1755786310469,2.56,186.07,185.95,3.0]
[1755786311771,4.75258662,186.05,185.95,3.0]
[1755786312069,4.75258662,186.02,185.9,3.0]
[1755786312768,4.75258662,185.99,185.9,3.0]
[1755786313070,2.56,185.98,185.86,3.0]
[1755786313271,2.56,185.98,185.86,8.3807]
[1755786313469,2.56,185.98,185.86,3.0]
[1755786313668,2.56,185.98,185.87,5.3806]
[1755786313970,2.56,185.98,185.86,3.0]
[1755786314371,2.56,185.98,185.86,8.3808]
[1755786314568,4.75258662,185.96,185.86,3.0]
[1755786314873,2.56,185.95,185.86,3.0]
[1755786315273,2.56,185.95,185.82,256.89434134]
[1755786315670,2.56,185.95,185.83,3.0]
[1755786315974,2.56,185.95,185.85,5.3811]
[1755786316273,4.75258662,185.93,185.83,3.0]
[1755786316974,4.75258662,185.99,185.86,3.0]
[1755786317666,2.56,185.95,185.86,3.0]
[1755786317874,4.75258662,185.93,185.82,3.0]
[1755786318473,4.75258662,185.93,185.83,5.3818]
[1755786318874,4.75258662,185.93,185.82,3.0]
[1755786319074,4.75258662,185.93,185.83,5.3815]
[1755786319976,4.75258662,185.93,185.82,3.0]
[1755786320379,7.31258662,185.93,185.81,3.0]
[1755786321070,7.31258662,185.93,185.81,8.3823]
[1755786321268,7.31258662,185.93,185.81,3.0]
[1755786321469,2.56,185.89,185.81,3.0]
[1755786322278,2.56,185.89,185.77,7.47793011]
[1755786322480,4.75258662,185.87,185.77,3.0]
[1755786323479,4.75258662,185.87,185.8,5.3826]
[1755786323977,2.56,185.89,185.78,2.98]
[1755786324476,2.56,185.89,185.79,5.3828]
[1755786324679,2.56,185.89,185.78,2.98]
[1755786325078,2.56,185.89,185.79,5.3829]
[1755786325274,2.56,185.89,185.78,2.98]
[1755786325875,7.31258662,185.93,185.79,2.98]
[1755786326082,4.75258662,185.96,185.85,5.381]
[1755786326283,4.75258662,185.96,185.85,2.98]
[1755786326781,4.75258662,185.96,185.85,8.361]
[1755786326981,4.75258662,185.96,185.85,2.98]
[1755786327191,2.56,185.97,185.85,2.98]
[1755786327395,2.56,186.0,185.87,2.98]
[1755786327686,2.56,185.98,185.87,2.98]
[1755786327892,2.56,185.95,185.82,2.98]
[1755786328087,4.75258662,186.01,185.87,2.98]
[1755786328284,4.75258662,186.01,185.88,5.3801]
[1755786328588,4.75258662,186.01,185.87,2.98]
[1755786328794,2.56,186.0,185.87,2.98]
[1755786329288,2.56,186.0,185.88,5.3801]
[1755786329697,2.56,186.0,185.87,2.98]
[1755786329885,2.56,186.0,185.89,5.38]
[1755786330085,2.56,186.0,185.87,2.98]
[1755786330991,4.75258662,185.98,185.87,2.98]
[1755786331297,2.56,185.97,185.87,2.98]
[1755786331489,2.56,185.97,185.87,8.3604]
[1755786331690,2.56,185.97,185.87,2.98]
[1755786333089,2.56,185.97,185.84,5.3812]
[1755786333287,2.56,185.94,185.83,2.98]
[1755786333997,367.44367813,186.03,185.84,2.98]
[1755786333998,4.75258662,185.97,185.84,2.98]
[1755786334594,4.75258662,185.97,185.87,5.3805]
[1755786334793,4.75258662,185.97,185.88,2.98]
[1755786335296,2.56,185.98,185.88,2.98]
[1755786335694,2.56,185.98,185.89,5.38]
[1755786335902,2.56,186.02,185.88,7.73258662]
[1755786336210,2.56,186.02,185.89,2.98]
[1755786337000,2.56,185.99,185.89,2.98]
[1755786338398,2.56,185.96,185.85,2.98]
[1755786338698,2.56,185.96,185.86,5.3809]
[1755786338899,2.56,185.96,185.85,2.98]
[1755786339594,2.56,185.96,185.85,8.361]
[1755786340088,7.31258662,185.96,185.86,5.3808]
[1755786341295,7.31258662,185.96,185.85,2.98]
[1755786341495,4.75258662,185.93,185.82,4.47793011]
[1755786341703,4.75258662,185.94,185.83,2.98]
[1755786341896,4.75258662,185.94,185.84,5.3813]
[1755786342295,4.75258662,185.94,185.83,7.45793011]
[1755786342598,4.75258662,185.94,185.86,5.3808]
[1755786342796,4.75258662,185.91,185.81,4.47793011]
[1755786342994,4.75258662,185.91,185.8,2.98]
[1755786342995,4.75258662,185.91,185.8,7.45793011]
[1755786343195,4.75258662,185.88,185.8,2.98]
[1755786345498,4.75258662,185.88,185.77,4.47793011]
[1755786345706,4.75258662,185.85,185.76,2.98]
[1755786345906,4.75258662,185.82,185.73,4.47793011]
[1755786346101,4.75258662,185.82,185.73,5.3846]
[1755786346303,2.56,185.84,185.71,7.45793011]
[1755786346505,2.56,185.84,185.73,7.45793011]
[1755786346701,7.31258662,185.88,185.77,2.98]
[1755786346902,4.75258662,185.85,185.77,2.98]
[1755786347395,4.75258662,185.79,185.72,2.98]
[1755786347598,4.75258662,185.76,185.67,8.3662]
[1755786347800,4.75258662,185.76,185.67,2.98]
[1755786350307,4.75258662,185.76,185.67,8.3662]
[1755786350607,7.31258662,185.77,185.67,2.98]
[1755786350805,7.31258662,185.77,185.6,141.23633967]
[1755786350806,2.56,185.73,185.63,2.98]
[1755786351104,2.56,185.7,185.59,2.98]
[1755786351303,7.31258662,185.7,185.61,5.3879]
[1755786351704,7.31258662,185.7,185.59,2.98]
[1755786352006,7.31258662,185.7,185.59,8.3687]
[1755786352206,7.31258662,185.7,185.59,2.98]
[1755786352703,4.75258662,185.64,185.53,2.8]
[1755786352903,4.75258662,185.61,185.49,2.8]
[1755786353607,2.56,185.63,185.49,7.55258662]
[1755786353806,2.56,185.63,185.5,2.8]
[1755786354007,7.31258662,185.63,185.5,2.8]
[1755786354813,7.31258662,185.63,185.53,2.8]
[1755786355205,4.75258662,185.66,185.53,2.8]
[1755786357109,4.75258662,185.66,185.53,8.1904]
[1755786357610,4.75258662,185.66,185.54,5.39]
[1755786357804,4.75258662,185.66,185.53,2.8]
[1755786358110,2.56,185.67,185.58,8.1888]
[1755786358402,2.56,185.67,185.58,2.8]
[1755786358599,4.75258662,185.66,185.54,2.8]
[1755786359611,2.56,185.65,185.54,2.8]
[1755786359810,2.56,185.62,185.5,2.8]
[1755786360411,4.75258662,185.66,185.51,2.8]
[1755786360610,4.75258662,185.66,185.54,5.3902]
[1755786360911,2.56,185.65,185.55,2.8]
[1755786361308,4.75258662,185.63,185.55,2.8]
[1755786361699,2.56,185.62,185.51,2.8]
[1755786361905,2.56,185.59,185.51,2.8]
[1755786362106,4.75258662,185.53,185.39,2.8]
[1755786362302,7.31258662,185.53,185.39,2.8]
[1755786362711,4.75258662,185.5,185.39,2.8]
[1755786363313,4.75258662,185.48,185.39,2.8]
[1755786363608,140.36,185.65,185.39,7.55258662]
[1755786363812,4.75258662,185.55,185.44,5.3931]
[1755786364011,2.56,185.57,185.45,2.8]
[1755786364209,264.38,185.67,185.45,2.8]
[1755786364210,4.75258662,185.56,185.45,2.8]
[1755786364411,2.56,185.55,185.45,2.8]
[1755786364610,4.75258662,185.56,185.45,2.8]
[1755786364812,2.56,185.59,185.46,2.8]
[1755786365012,7.31258662,185.59,185.46,2.8]
[1755786367016,2.56,185.59,185.46,2.8]
[1755786368125,4.75258662,185.6,185.46,2.8]
[1755786368518,4.75258662,185.68,185.51,4.75258662]
[1755786368716,4.75258662,185.68,185.52,2.8]
[1755786368922,4.75258662,185.68,185.56,2.8]
[1755786369312,7.31258662,185.65,185.56,2.8]
[1755786369514,4.75258662,185.62,185.49,2.8]
[1755786369820,4.75258662,185.68,185.48,4.75258662]
[1755786370020,362.1,185.77,185.47,362.1]
[1755786370021,4.75258662,185.67,185.52,2.8]
[1755786370915,4.75258662,185.67,185.47,362.1]
[1755786370916,2.56,185.69,185.55,2.8]
[1755786371120,4.75258662,185.72,185.58,2.8]
[1755786371423,2.56,185.74,185.6,4.75258662]
[1755786371621,2.56,185.74,185.61,2.8]
[1755786371921,2.56,185.74,185.66,5.3866]
[1755786372324,4.75258662,185.78,185.65,2.8]
[1755786372518,4.75258662,185.78,185.56,140.4]
[1755786372519,2.56,185.79,185.67,2.8]
[1755786373329,4.75258662,185.78,185.67,2.8]
[1755786373732,4.75258662,185.75,185.61,2.8]
[1755786374229,4.75258662,185.72,185.61,2.8]
[1755786374433,2.56,185.72,185.61,2.8]
[1755786374629,2.56,185.72,185.6,362.12]
[1755786374835,7.84757491,185.7,185.57,2.8]
[1755786375434,2.56,185.69,185.57,2.8]
[1755786375629,10.40757491,185.74,185.57,2.8]
[1755786376131,10.40757491,185.74,185.62,5.3876]
[1755786376330,10.40757491,185.74,185.63,2.8]
[1755786376531,362.12,185.84,185.63,2.8]
[1755786376532,2.56,185.8,185.63,10.64757491]
[1755786376826,2.56,185.8,185.64,2.8]
[1755786377326,2.56,185.8,185.65,5.3867]
[1755786377526,2.56,185.8,185.64,2.8]
[1755786377931,7.84757491,185.82,185.68,2.8]
[1755786378330,2.56,185.83,185.7,5.3853]
[1755786378538,2.56,185.83,185.71,2.8]
[1755786378936,7.84757491,185.82,185.71,2.8]
[1755786379634,2.56,185.83,185.71,2.8]
[1755786380034,2.56,185.83,185.72,5.3847]
[1755786380633,2.56,185.83,185.71,2.8]
[1755786381039,2.56,185.83,185.73,5.3846]
[1755786381339,2.56,185.83,185.71,2.8]
[1755786381935,7.84757491,185.82,185.71,2.8]
[1755786382337,2.56,185.81,185.66,2.8]
[1755786384739,2.56,185.81,185.67,5.3864]
[1755786385438,2.56,185.81,185.66,2.8]
[1755786387441,2.56,185.81,185.69,5.3858]
[1755786387744,2.56,185.81,185.7,2.8]
[1755786388139,2.56,185.81,185.73,5.3845]
[1755786388338,2.57,185.86,185.7,2.8]
[1755786388746,2.57,185.86,185.75,2.8]
[1755786390443,2.57,185.86,185.75,8.1839]
[1755786390643,2.57,185.86,185.75,2.8]
[1755786391246,2.57,185.86,185.69,2.8]
[1755786392342,2.57,185.86,185.7,2.8]
[1755786392741,2.57,185.83,185.7,2.8]
[1755786393735,2.57,185.79,185.68,140.22]
[1755786395445,7.84757491,185.76,185.66,2.8]
[1755786395646,2.57,185.75,185.63,362.02]
[1755786396740,2.57,185.75,185.61,2.8]
[1755786396938,2.57,185.71,185.58,140.2]
[1755786397145,2.57,185.71,185.59,2.8]
[1755786397946,7.84757491,185.72,185.59,2.8]
[1755786398144,10.41757491,185.76,185.59,2.8]
[1755786398538,10.41757491,185.76,185.63,8.1874]
[1755786398741,10.41757491,185.76,185.63,2.8]
[1755786398946,7.84757491,185.72,185.58,140.2]
[1755786399145,2.57,185.71,185.59,2.8]
[1755786400152,2.57,185.71,185.63,2.8]
[1755786400442,7.84757491,185.74,185.63,2.8]
[1755786401647,2.57,185.75,185.63,2.8]
[1755786402048,7.84757491,185.74,185.63,2.8]
[1755786402645,2.57,185.75,185.63,2.8]
[1755786403753,2.57,185.75,185.65,5.387]
[1755786404049,2.57,185.75,185.63,2.8]
[1755786404247,2.57,185.75,185.63,8.1876]
[1755786404551,2.57,185.75,185.63,2.8]
[1755786405053,7.84757491,185.74,185.63,2.8]
[1755786405846,2.57,185.69,185.56,2.8]
[1755786406242,2.57,185.69,185.59,5.3885]
[1755786406448,2.57,185.69,185.59,8.1885]
[1755786406645,2.57,185.69,185.59,2.8]
[1755786407448,2.57,185.69,185.59,8.1885]
[1755786407743,2.57,185.69,185.59,2.8]
[1755786407944,2.57,185.69,185.59,8.1887]
[1755786408146,2.57,185.69,185.59,2.8]
[1755786408653,2.57,185.75,185.59,2.8]
[1755786408851,2.57,185.75,185.6,2.8]
[1755786409156,361.82,185.81,185.61,4.46018731]
[1755786409157,2.57,185.79,185.61,4.46018731]
[1755786409355,2.57,185.79,185.64,2.8]
[1755786410147,2.57,185.76,185.64,2.8]
[1755786411249,2.57,185.76,185.66,5.3865]
[1755786411450,2.57,185.76,185.64,7.26018731]
[1755786411650,2.57,185.76,185.65,2.8]
[1755786411852,2.57,185.8,185.69,2.8]
[1755786412259,10.41757491,185.84,185.72,5.3848]
[1755786412456,10.41757491,185.84,185.69,7.26018731]
[1755786412856,2.57,185.84,185.74,5.3842]
[1755786413054,2.57,185.84,185.74,8.2842]
[1755786413355,10.40757491,185.88,185.76,5.3838]
[1755786413856,10.40757491,185.88,185.77,5.3833]
[1755786414053,10.40757491,185.99,185.81,7.84757491]
[1755786414253,10.40757491,185.99,185.83,2.9]
[1755786414457,10.40757491,185.99,185.83,7.36018731]
[1755786414761,10.40757491,185.99,185.84,2.9]
[1755786415361,2.56,185.98,185.84,2.9]
[1755786417361,2.56,185.94,185.84,2.9]
[1755786417765,2.56,185.94,185.79,2.9]
[1755786420268,2.56,185.9,185.78,361.9]
[1755786420460,2.56,185.9,185.75,2.9]
[1755786421260,2.56,185.9,185.76,7.36018731]
[1755786421462,2.56,185.9,185.77,2.9]
[1755786421664,2.56,185.94,185.77,2.9]